[Event "*** Titled Tuesday 3|2 Blitz"]
[Site "Chess.com"]
[Date "2017.06.06"]
[Round "2"]
[White "XDPS"]
[Black "Margency"]
[Result "0-1"]
[WhiteElo "2512"]
[BlackElo "2549"]
[TimeControl "180+2"]
[EndTime "14:12:28 PDT"]
[Termination "Margency won by checkmate"]

1. d4 {[%clk 0:03:02]} 1... Nf6 {[%clk 0:02:59.8]} 2. c4 {[%clk 0:03:01.4]} 2...
e6 {[%clk 0:03:01]} 3. Nc3 {[%clk 0:03:01.9]} 3... Bb4 {[%clk 0:03:01.7]} 4. e3
{[%clk 0:03:02.8]} 4... O-O {[%clk 0:03:01.8]} 5. Bd3 {[%clk 0:03:02.5]} 5... d5
{[%clk 0:03:02.9]} 6. Nf3 {[%clk 0:03:03.7]} 6... c5 {[%clk 0:03:03.9]} 7. O-O
{[%clk 0:03:05]} 7... dxc4 {[%clk 0:03:02.4]} 8. Bxc4 {[%clk 0:03:05.7]} 8... b6
{[%clk 0:03:03.8]} 9. Qe2 {[%clk 0:03:05]} 9... Nbd7 {[%clk 0:02:57.5]} 10. Rd1
{[%clk 0:03:02.5]} 10... Bxc3 {[%clk 0:02:57.4]} 11. bxc3 {[%clk 0:03:03.2]}
11... Qc7 {[%clk 0:02:58.2]} 12. a4 {[%clk 0:02:57.5]} 12... Bb7 {[%clk
0:02:59]} 13. Bb2 {[%clk 0:02:56.2]} 13... Rac8 {[%clk 0:02:48.9]} 14. Bd3
{[%clk 0:02:51.5]} 14... e5 {[%clk 0:02:49.1]} 15. dxe5 {[%clk 0:02:44]} 15...
Bxf3 {[%clk 0:02:37.7]} 16. gxf3 {[%clk 0:02:42.8]} 16... Nxe5 {[%clk
0:02:38.9]} 17. Bf5 {[%clk 0:02:44]} 17... Qc6 {[%clk 0:02:25.3]} 18. Kg2 {[%clk
0:02:39.3]} 18... Rcd8 {[%clk 0:02:23.5]} 19. c4 {[%clk 0:02:40]} 19... Ng6
{[%clk 0:02:22.9]} 20. Bxg6 {[%clk 0:02:21.2]} 20... hxg6 {[%clk 0:02:21.8]} 21.
Bxf6 {[%clk 0:02:22.1]} 21... Qxf6 {[%clk 0:02:19.5]} 22. a5 {[%clk 0:02:23.2]}
22... Qg5+ {[%clk 0:01:59.8]} 23. Kh1 {[%clk 0:02:22.4]} 23... Qh4 {[%clk
0:01:58.3]} 24. axb6 {[%clk 0:02:20.4]} 24... axb6 {[%clk 0:01:58.9]} 25. f4
{[%clk 0:02:18.3]} 25... Qe7 {[%clk 0:01:55.5]} 26. Kg2 {[%clk 0:02:14.5]} 26...
Qe4+ {[%clk 0:01:55.2]} 27. f3 {[%clk 0:02:13.1]} 27... Qf5 {[%clk 0:01:52.6]}
28. Kh1 {[%clk 0:01:56.5]} 28... Rfe8 {[%clk 0:01:52.5]} 29. Qf2 {[%clk
0:01:23.4]} 29... Rd3 {[%clk 0:01:42.1]} 30. Re1 {[%clk 0:01:09.8]} 30... Red8
{[%clk 0:01:38.3]} 31. Rab1 {[%clk 0:01:04.5]} 31... Rd2 {[%clk 0:01:38.2]} 32.
Qg3 {[%clk 0:01:05.7]} 32... Qe6 {[%clk 0:01:30.4]} 33. e4 {[%clk 0:01:01.4]}
33... Qxc4 {[%clk 0:01:21.4]} 34. Rxb6 {[%clk 0:01:02.2]} 34... Rd1 {[%clk
0:01:19.6]} 35. Rb1 {[%clk 0:01:01.8]} 35... Rxb1 {[%clk 0:01:18.5]} 36. Rxb1
{[%clk 0:01:03.7]} 36... Qc2 {[%clk 0:01:18.8]} 37. Re1 {[%clk 0:01:00.6]} 37...
c4 {[%clk 0:01:18.6]} 38. e5 {[%clk 0:00:57.7]} 38... c3 {[%clk 0:01:17.4]} 39.
Qg2 {[%clk 0:00:47.2]} 39... Rd2 {[%clk 0:01:13.2]} 40. Qh3 {[%clk 0:00:48.1]}
40... Qf5 {[%clk 0:01:01.6]} 41. Qf1 {[%clk 0:00:32]} 41... Qxf4 {[%clk
0:01:00.6]} 42. Qh3 {[%clk 0:00:33.6]} 42... Qf5 {[%clk 0:00:55.4]} 43. Qf1
{[%clk 0:00:32.3]} 43... c2 {[%clk 0:00:55.2]} 44. e6 {[%clk 0:00:19.6]} 44...
fxe6 {[%clk 0:00:50.8]} 45. Rc1 {[%clk 0:00:20.6]} 45... Qf4 {[%clk 0:00:48.8]}
46. h3 {[%clk 0:00:21.3]} 46... Qh2# {[%clk 0:00:49.1]} 0-1

[Event "*** Titled Tuesday 3|2 Blitz"]
[Site "Chess.com"]
[Date "2017.06.06"]
[Round "2"]
[White "ChessNinja48"]
[Black "Kawhi_Leonard2"]
[Result "0-1"]
[WhiteElo "2314"]
[BlackElo "2190"]
[TimeControl "180+2"]
[EndTime "14:12:30 PDT"]
[Termination "Kawhi_Leonard2 won by resignation"]

1. d4 {[%clk 0:03:02]} 1... Nf6 {[%clk 0:03:00.3]} 2. Nf3 {[%clk 0:03:02.6]}
2... e6 {[%clk 0:03:01.1]} 3. c4 {[%clk 0:03:03.4]} 3... c5 {[%clk 0:03:01.5]}
4. d5 {[%clk 0:03:04.3]} 4... exd5 {[%clk 0:03:02.3]} 5. cxd5 {[%clk 0:03:05.3]}
5... d6 {[%clk 0:03:03.9]} 6. Nc3 {[%clk 0:03:06.5]} 6... g6 {[%clk 0:03:05.4]}
7. Nd2 {[%clk 0:03:07.6]} 7... Nbd7 {[%clk 0:03:04.4]} 8. e4 {[%clk 0:03:08.5]}
8... Bg7 {[%clk 0:03:04.8]} 9. Be2 {[%clk 0:03:09.7]} 9... O-O {[%clk
0:03:05.1]} 10. O-O {[%clk 0:03:09.7]} 10... Re8 {[%clk 0:03:06.2]} 11. f3
{[%clk 0:03:04.9]} 11... a6 {[%clk 0:03:05.4]} 12. a4 {[%clk 0:03:05.6]} 12...
Rb8 {[%clk 0:03:04.6]} 13. Nc4 {[%clk 0:02:57.4]} 13... Nb6 {[%clk 0:03:05.1]}
14. Kh1 {[%clk 0:02:46.7]} 14... Nxc4 {[%clk 0:03:02.8]} 15. Bxc4 {[%clk
0:02:47.8]} 15... Bd7 {[%clk 0:03:03.7]} 16. a5 {[%clk 0:02:41.9]} 16... Nh5
{[%clk 0:02:46.3]} 17. f4 {[%clk 0:02:03]} 17... Qh4 {[%clk 0:02:37]} 18. Qd3
{[%clk 0:01:44.9]} 18... f5 {[%clk 0:02:20.5]} 19. Bd2 {[%clk 0:01:36.1]} 19...
fxe4 {[%clk 0:02:03.2]} 20. Qe3 {[%clk 0:01:01.9]} 20... Bd4 {[%clk 0:02:02.8]}
21. Qe1 {[%clk 0:01:03.2]} 21... Qxe1 {[%clk 0:01:25.7]} 22. Raxe1 {[%clk
0:01:05.1]} 22... e3 {[%clk 0:01:26.6]} 23. Bc1 {[%clk 0:01:06.5]} 23... b5
{[%clk 0:01:05.9]} 24. Be2 {[%clk 0:00:58.6]} 24... Nf6 {[%clk 0:01:01.8]} 25.
Bf3 {[%clk 0:00:58.9]} 25... b4 {[%clk 0:00:57.6]} 26. Ne2 {[%clk 0:00:56.6]}
26... Bb5 {[%clk 0:00:58.2]} 27. g3 {[%clk 0:00:43.7]} 27... Bc4 {[%clk
0:00:54.3]} 28. Rd1 {[%clk 0:00:36.3]} 28... Nxd5 {[%clk 0:00:42.7]} 29. Nxd4
{[%clk 0:00:33.3]} 29... cxd4 {[%clk 0:00:43.4]} 30. Rfe1 {[%clk 0:00:31.4]}
30... d3 {[%clk 0:00:36.3]} 31. Rxd3 {[%clk 0:00:24.7]} 31... Bxd3 {[%clk
0:00:33.9]} 32. Bxd5+ {[%clk 0:00:25.5]} 32... Kg7 {[%clk 0:00:34]} 33. Bxe3
{[%clk 0:00:25.3]} 33... Be4+ {[%clk 0:00:25.2]} 34. Bxe4 {[%clk 0:00:26.2]}
34... Rxe4 {[%clk 0:00:26.1]} 35. Kg2 {[%clk 0:00:24.2]} 35... Kf7 {[%clk
0:00:26.8]} 36. Kf2 {[%clk 0:00:24.4]} 36... Rbe8 {[%clk 0:00:27.3]} 37. Bd2
{[%clk 0:00:25.7]} 37... Rxe1 {[%clk 0:00:26.8]} 38. Bxe1 {[%clk 0:00:27.6]}
38... Rb8 {[%clk 0:00:27]} 39. Ke3 {[%clk 0:00:25.5]} 39... Ke6 {[%clk 0:00:28]}
40. Kd4 {[%clk 0:00:26.6]} 40... Rb5 {[%clk 0:00:28.7]} 41. g4 {[%clk
0:00:25.9]} 41... Rxa5 {[%clk 0:00:26.7]} 42. Bxb4 {[%clk 0:00:27.1]} 42... Ra4
{[%clk 0:00:24.8]} 43. Kc3 {[%clk 0:00:28.3]} 43... Kd5 {[%clk 0:00:25.7]} 44.
h3 {[%clk 0:00:20.9]} 44... a5 {[%clk 0:00:25.6]} 45. Ba3 {[%clk 0:00:19.4]}
45... Rxf4 {[%clk 0:00:25.6]} 0-1

[Event "*** Titled Tuesday 3|2 Blitz"]
[Site "Chess.com"]
[Date "2017.06.06"]
[Round "2"]
[White "Batica1984"]
[Black "Federtiu"]
[Result "1-0"]
[WhiteElo "2544"]
[BlackElo "2414"]
[TimeControl "180+2"]
[EndTime "14:12:42 PDT"]
[Termination "Batica1984 won by resignation"]

1. e4 {[%clk 0:03:01.1]} 1... g6 {[%clk 0:02:59.6]} 2. d4 {[%clk 0:03:01.4]}
2... Bg7 {[%clk 0:03:01.1]} 3. Nc3 {[%clk 0:03:01.9]} 3... d6 {[%clk 0:03:00.3]}
4. Bg5 {[%clk 0:02:59.6]} 4... h6 {[%clk 0:03:01]} 5. Bh4 {[%clk 0:02:59.9]}
5... a6 {[%clk 0:03:02.4]} 6. Qd2 {[%clk 0:02:56.4]} 6... b5 {[%clk 0:03:03.1]}
7. O-O-O {[%clk 0:02:56.3]} 7... Nd7 {[%clk 0:02:47.5]} 8. f4 {[%clk 0:02:54.1]}
8... c5 {[%clk 0:02:46.4]} 9. Nf3 {[%clk 0:02:37.9]} 9... Bb7 {[%clk 0:02:28.6]}
10. Bf2 {[%clk 0:02:06]} 10... b4 {[%clk 0:01:56.4]} 11. Na4 {[%clk 0:01:59.3]}
11... Qa5 {[%clk 0:01:47.5]} 12. b3 {[%clk 0:01:52.9]} 12... cxd4 {[%clk
0:01:37.8]} 13. Bxd4 {[%clk 0:01:50.3]} 13... Ngf6 {[%clk 0:01:38.7]} 14. e5
{[%clk 0:01:29.9]} 14... Ne4 {[%clk 0:01:38.5]} 15. Qe1 {[%clk 0:01:29.5]} 15...
dxe5 {[%clk 0:01:18.8]} 16. Bb2 {[%clk 0:01:24.4]} 16... Rc8 {[%clk 0:01:11.8]}
17. Kb1 {[%clk 0:01:10.1]} 17... Nc3+ {[%clk 0:00:59.4]} 18. Nxc3 {[%clk
0:01:04.7]} 18... bxc3 {[%clk 0:01:01.3]} 19. Bc1 {[%clk 0:01:04.9]} 19... e4
{[%clk 0:00:56.8]} 20. Nd4 {[%clk 0:00:53.2]} 20... O-O {[%clk 0:00:52.4]} 21.
Ne6 {[%clk 0:00:33.1]} 21... fxe6 {[%clk 0:00:47.5]} 22. Rxd7 {[%clk 0:00:33.7]}
22... Bd5 {[%clk 0:00:47.8]} 23. Rxe7 {[%clk 0:00:24.7]} 23... Bf6 {[%clk
0:00:44]} 24. Ra7 {[%clk 0:00:24.8]} 24... Rc6 {[%clk 0:00:41.7]} 25. Qg3 {[%clk
0:00:24.5]} 25... Rc7 {[%clk 0:00:18.2]} 26. Qxg6+ {[%clk 0:00:22.4]} 26... Bg7
{[%clk 0:00:14.4]} 27. Rxa6 {[%clk 0:00:22]} 27... Qc5 {[%clk 0:00:14.7]} 28.
Be2 {[%clk 0:00:20.3]} 28... Qf2 {[%clk 0:00:09]} 29. Bg4 {[%clk 0:00:19.4]}
29... Re7 {[%clk 0:00:05.6]} 30. Bxe6+ {[%clk 0:00:19.5]} 30... Rxe6 {[%clk
0:00:06]} 31. Rxe6 {[%clk 0:00:21.1]} 31... Bxe6 {[%clk 0:00:07]} 32. Qxe6+
{[%clk 0:00:21.7]} 32... Kh8 {[%clk 0:00:06.8]} 33. Qxe4 {[%clk 0:00:23.3]}
33... Rd8 {[%clk 0:00:07.8]} 34. Re1 {[%clk 0:00:23.6]} 34... Rd6 {[%clk
0:00:02.5]} 35. f5 {[%clk 0:00:24.1]} 35... Rf6 {[%clk 0:00:03.1]} 36. g4 {[%clk
0:00:24.9]} 36... Qxh2 {[%clk 0:00:02.3]} 37. Bf4 {[%clk 0:00:25.7]} 37... Qf2
{[%clk 0:00:03]} 38. Be5 {[%clk 0:00:25.9]} 38... Rf7 {[%clk 0:00:03.3]} 39.
Bxg7+ {[%clk 0:00:26.6]} 39... Kxg7 {[%clk 0:00:05]} 40. a4 {[%clk 0:00:27.7]}
40... Qd2 {[%clk 0:00:05.4]} 41. Qe5+ {[%clk 0:00:28.5]} 41... Kg8 {[%clk
0:00:06.5]} 42. Qe3 {[%clk 0:00:29]} 42... Rd7 {[%clk 0:00:04.2]} 43. Qxd2
{[%clk 0:00:29.9]} 43... cxd2 {[%clk 0:00:06.1]} 44. Rd1 {[%clk 0:00:31.1]}
44... Kf7 {[%clk 0:00:08]} 45. c4 {[%clk 0:00:32.3]} 45... Kf6 {[%clk
0:00:08.6]} 46. Kc2 {[%clk 0:00:33.4]} 46... Kg5 {[%clk 0:00:10.5]} 47. Rxd2
{[%clk 0:00:34.7]} 47... Rb7 {[%clk 0:00:12.4]} 48. Rd4 {[%clk 0:00:35.8]} 1-0

[Event "*** Titled Tuesday 3|2 Blitz"]
[Site "Chess.com"]
[Date "2017.06.06"]
[Round "2"]
[White "FastChance"]
[Black "TenisMaster"]
[Result "0-1"]
[WhiteElo "2485"]
[BlackElo "2660"]
[TimeControl "180+2"]
[EndTime "14:12:47 PDT"]
[Termination "TenisMaster won by resignation"]

1. d4 {[%clk 0:03:01.9]} 1... Nf6 {[%clk 0:02:53.2]} 2. Bf4 {[%clk 0:03:01.7]}
2... b6 {[%clk 0:02:51.1]} 3. e3 {[%clk 0:03:01.7]} 3... Bb7 {[%clk 0:02:50.7]}
4. Nf3 {[%clk 0:03:03.3]} 4... g6 {[%clk 0:02:50.6]} 5. Be2 {[%clk 0:03:04]}
5... Bg7 {[%clk 0:02:51.8]} 6. O-O {[%clk 0:03:05.3]} 6... d6 {[%clk 0:02:52.6]}
7. h3 {[%clk 0:03:06.3]} 7... O-O {[%clk 0:02:53.3]} 8. Nbd2 {[%clk 0:03:07.6]}
8... Nbd7 {[%clk 0:02:54]} 9. Re1 {[%clk 0:03:08.6]} 9... Qe8 {[%clk 0:02:51.2]}
10. Bh2 {[%clk 0:03:06.5]} 10... e5 {[%clk 0:02:51.6]} 11. dxe5 {[%clk
0:03:06.8]} 11... dxe5 {[%clk 0:02:51.6]} 12. Nc4 {[%clk 0:03:07.8]} 12... Ne4
{[%clk 0:02:47.9]} 13. c3 {[%clk 0:03:04]} 13... Qe7 {[%clk 0:02:46.4]} 14. Qc2
{[%clk 0:03:02.8]} 14... Rad8 {[%clk 0:02:37.4]} 15. a4 {[%clk 0:03:04]} 15...
a6 {[%clk 0:02:36.8]} 16. Red1 {[%clk 0:03:02]} 16... f5 {[%clk 0:02:31.5]} 17.
Nfd2 {[%clk 0:02:40.3]} 17... Ndc5 {[%clk 0:02:24.6]} 18. b4 {[%clk 0:02:35.6]}
18... Nxd2 {[%clk 0:02:10.6]} 19. Rxd2 {[%clk 0:02:27.2]} 19... Ne4 {[%clk
0:02:00.1]} 20. Rdd1 {[%clk 0:02:22.2]} 20... h5 {[%clk 0:01:57.4]} 21. Bf3
{[%clk 0:02:16.2]} 21... Ba8 {[%clk 0:01:35.2]} 22. Qb3 {[%clk 0:01:55.2]} 22...
Kh7 {[%clk 0:01:33.3]} 23. Rac1 {[%clk 0:01:47]} 23... Bd5 {[%clk 0:01:27.7]}
24. Bxe4 {[%clk 0:01:07.2]} 24... fxe4 {[%clk 0:01:24]} 25. Rxd5 {[%clk
0:01:06.7]} 25... Rxd5 {[%clk 0:01:24.2]} 26. Nxb6 {[%clk 0:01:00.2]} 26... Rd3
{[%clk 0:01:23.1]} 27. Nc4 {[%clk 0:00:52.3]} 27... Rfd8 {[%clk 0:01:14.6]} 28.
Rf1 {[%clk 0:00:44.5]} 28... h4 {[%clk 0:01:12.4]} 29. Qc2 {[%clk 0:00:42.2]}
29... Qe6 {[%clk 0:01:11.4]} 30. Nb2 {[%clk 0:00:38.2]} 30... Rd2 {[%clk
0:01:10.3]} 31. Qxe4 {[%clk 0:00:39.5]} 31... Bf6 {[%clk 0:00:36.7]} 32. Nc4
{[%clk 0:00:39.2]} 32... Rd1 {[%clk 0:00:37.7]} 33. Nxe5 {[%clk 0:00:31.2]}
33... Be7 {[%clk 0:00:16.3]} 34. Bf4 {[%clk 0:00:26.5]} 34... Rxf1+ {[%clk
0:00:16.8]} 35. Kxf1 {[%clk 0:00:28.1]} 35... Rd1+ {[%clk 0:00:17.5]} 36. Ke2
{[%clk 0:00:27.6]} 36... Rc1 {[%clk 0:00:18]} 37. Kd2 {[%clk 0:00:21.6]} 37...
Ra1 {[%clk 0:00:18.3]} 38. Kd3 {[%clk 0:00:17.2]} 38... Qd6+ {[%clk 0:00:17]}
39. Qd4 {[%clk 0:00:17.5]} 39... Rd1+ {[%clk 0:00:17.5]} 40. Ke4 {[%clk
0:00:17.2]} 40... Rxd4+ {[%clk 0:00:19.4]} 41. exd4 {[%clk 0:00:18.1]} 41... Qe6
{[%clk 0:00:20.6]} 42. c4 {[%clk 0:00:16.8]} 42... Qf5+ {[%clk 0:00:21.8]} 43.
Ke3 {[%clk 0:00:18.4]} 43... Qc2 {[%clk 0:00:22.4]} 44. Nc6 {[%clk 0:00:17.5]}
44... Bf6 {[%clk 0:00:22.5]} 45. Be5 {[%clk 0:00:17.9]} 45... Qxc4 {[%clk
0:00:22.7]} 46. Bxf6 {[%clk 0:00:19.3]} 46... Qxc6 {[%clk 0:00:23.7]} 47. Be5
{[%clk 0:00:20.5]} 47... Qxg2 {[%clk 0:00:24.9]} 48. Bxc7 {[%clk 0:00:20.1]}
48... Qxh3+ {[%clk 0:00:26]} 49. Ke4 {[%clk 0:00:21.5]} 49... Qg4+ {[%clk
0:00:26.9]} 50. Ke3 {[%clk 0:00:21.9]} 50... h3 {[%clk 0:00:27.4]} 51. f3 {[%clk
0:00:23.6]} 51... Qg1+ {[%clk 0:00:27.9]} 52. Ke4 {[%clk 0:00:25.5]} 52... h2
{[%clk 0:00:29.2]} 53. Bxh2 {[%clk 0:00:26.6]} 53... Qxh2 {[%clk 0:00:31.1]} 54.
d5 {[%clk 0:00:28]} 54... Qd6 {[%clk 0:00:32.3]} 55. b5 {[%clk 0:00:29.6]} 55...
axb5 {[%clk 0:00:33.1]} 56. axb5 {[%clk 0:00:31.5]} 56... Kg7 {[%clk 0:00:34.2]}
0-1

[Event "*** Titled Tuesday 3|2 Blitz"]
[Site "Chess.com"]
[Date "2017.06.06"]
[Round "2"]
[White "TomsKantans"]
[Black "sergiochess83"]
[Result "0-1"]
[WhiteElo "2490"]
[BlackElo "2634"]
[TimeControl "180+2"]
[EndTime "14:13:05 PDT"]
[Termination "sergiochess83 won by checkmate"]

1. e4 {[%clk 0:03:02]} 1... c6 {[%clk 0:02:59.9]} 2. d4 {[%clk 0:03:01.1]} 2...
d5 {[%clk 0:03:01.8]} 3. e5 {[%clk 0:03:00.9]} 3... Bf5 {[%clk 0:03:02.7]} 4.
Nf3 {[%clk 0:03:01.9]} 4... e6 {[%clk 0:03:04.1]} 5. Be2 {[%clk 0:03:02.9]} 5...
Ne7 {[%clk 0:03:04.6]} 6. O-O {[%clk 0:03:03.2]} 6... c5 {[%clk 0:03:06]} 7.
dxc5 {[%clk 0:03:01.8]} 7... Nec6 {[%clk 0:03:05.5]} 8. c4 {[%clk 0:03:02]} 8...
d4 {[%clk 0:03:03.9]} 9. a3 {[%clk 0:02:52.5]} 9... a5 {[%clk 0:03:01.9]} 10.
Bg5 {[%clk 0:02:41.3]} 10... f6 {[%clk 0:02:49.9]} 11. Bh4 {[%clk 0:02:32.2]}
11... d3 {[%clk 0:02:50.1]} 12. exf6 {[%clk 0:02:16.1]} 12... dxe2 {[%clk
0:02:46.1]} 13. Qxe2 {[%clk 0:02:12.8]} 13... Qd3 {[%clk 0:02:44.6]} 14. Qe1
{[%clk 0:02:02.4]} 14... Nd7 {[%clk 0:02:41.4]} 15. Nc3 {[%clk 0:01:51.1]} 15...
gxf6 {[%clk 0:02:33.5]} 16. Rd1 {[%clk 0:01:35.2]} 16... Qxc4 {[%clk 0:02:34.3]}
17. Nd5 {[%clk 0:01:36.4]} 17... O-O-O {[%clk 0:02:21.1]} 18. Bxf6 {[%clk
0:01:33.7]} 18... exd5 {[%clk 0:02:04.3]} 19. Bxh8 {[%clk 0:01:34.9]} 19... Bxc5
{[%clk 0:02:02.8]} 20. Qc3 {[%clk 0:01:29.6]} 20... Rg8 {[%clk 0:01:48.2]} 21.
Rfe1 {[%clk 0:00:56.2]} 21... Qxc3 {[%clk 0:01:03]} 22. Bxc3 {[%clk 0:00:58.1]}
22... Be4 {[%clk 0:01:04.9]} 23. Kf1 {[%clk 0:00:45.1]} 23... Bxf3 {[%clk
0:01:00.8]} 24. gxf3 {[%clk 0:00:47]} 24... d4 {[%clk 0:01:02.5]} 25. Bxa5
{[%clk 0:00:35]} 25... Nxa5 {[%clk 0:00:57.4]} 26. b4 {[%clk 0:00:36.3]} 26...
Nb3 {[%clk 0:00:51.6]} 27. bxc5 {[%clk 0:00:37.4]} 27... Ndxc5 {[%clk
0:00:53.5]} 28. Re7 {[%clk 0:00:36.4]} 28... h5 {[%clk 0:00:52.2]} 29. Re5
{[%clk 0:00:36.8]} 29... h4 {[%clk 0:00:40]} 30. Rh5 {[%clk 0:00:16.3]} 30...
Kc7 {[%clk 0:00:35.8]} 31. Rxh4 {[%clk 0:00:17.6]} 31... Kc6 {[%clk 0:00:37]}
32. Rg4 {[%clk 0:00:15.5]} 32... Rf8 {[%clk 0:00:37]} 33. Kg2 {[%clk 0:00:15.6]}
33... Kd5 {[%clk 0:00:31.7]} 34. h4 {[%clk 0:00:16.7]} 34... Kc4 {[%clk
0:00:30.7]} 35. h5 {[%clk 0:00:18.1]} 35... Rh8 {[%clk 0:00:30.2]} 36. Rh1
{[%clk 0:00:15.2]} 36... Kc3 {[%clk 0:00:31.7]} 37. h6 {[%clk 0:00:16.6]} 37...
d3 {[%clk 0:00:32.6]} 38. h7 {[%clk 0:00:18.1]} 38... d2 {[%clk 0:00:32.9]} 39.
Rg8 {[%clk 0:00:14.7]} 39... Rxh7 {[%clk 0:00:32.9]} 40. Rxh7 {[%clk 0:00:16.6]}
40... d1=Q {[%clk 0:00:34]} 41. Rg3 {[%clk 0:00:17.1]} 41... Qd5 {[%clk
0:00:29.7]} 42. Rh4 {[%clk 0:00:16]} 42... Nd4 {[%clk 0:00:28.6]} 43. Rhg4
{[%clk 0:00:12.9]} 43... Nd3 {[%clk 0:00:29.1]} 44. Rg5 {[%clk 0:00:12.8]} 44...
Nf4+ {[%clk 0:00:29.5]} 45. Kh2 {[%clk 0:00:12.3]} 45... Qc6 {[%clk 0:00:22.6]}
46. R3g4 {[%clk 0:00:08.9]} 46... Qh6+ {[%clk 0:00:21.6]} 47. Kg3 {[%clk
0:00:10.2]} 47... Nde2# {[%clk 0:00:22.5]} 0-1

[Event "*** Titled Tuesday 3|2 Blitz"]
[Site "Chess.com"]
[Date "2017.06.06"]
[Round "2"]
[White "AndrewDGreen"]
[Black "lucasmito"]
[Result "1-0"]
[WhiteElo "2207"]
[BlackElo "2063"]
[TimeControl "180+2"]
[EndTime "14:13:13 PDT"]
[Termination "AndrewDGreen won on time"]

1. d4 {[%clk 0:02:50.2]} 1... d5 {[%clk 0:02:37.9]} 2. Bf4 {[%clk 0:02:50]} 2...
Nf6 {[%clk 0:02:36.9]} 3. e3 {[%clk 0:02:50.8]} 3... e6 {[%clk 0:02:37]} 4. Nf3
{[%clk 0:02:51.1]} 4... c5 {[%clk 0:02:36.8]} 5. c3 {[%clk 0:02:51.7]} 5... Nc6
{[%clk 0:02:37.3]} 6. Nbd2 {[%clk 0:02:52.1]} 6... Bd6 {[%clk 0:02:38.4]} 7. Bg3
{[%clk 0:02:52.3]} 7... O-O {[%clk 0:02:39.1]} 8. Bd3 {[%clk 0:02:51.1]} 8... h6
{[%clk 0:02:36.9]} 9. O-O {[%clk 0:02:48.9]} 9... Bxg3 {[%clk 0:02:30.5]} 10.
fxg3 {[%clk 0:02:38.1]} 10... Qd6 {[%clk 0:02:22]} 11. Qe2 {[%clk 0:02:15.1]}
11... e5 {[%clk 0:02:19.9]} 12. Bb5 {[%clk 0:02:05.7]} 12... exd4 {[%clk
0:02:13.6]} 13. exd4 {[%clk 0:02:01.8]} 13... Re8 {[%clk 0:02:10.7]} 14. Qd3
{[%clk 0:01:59.9]} 14... Ne4 {[%clk 0:01:54.6]} 15. Bxc6 {[%clk 0:01:47.9]}
15... bxc6 {[%clk 0:01:53.1]} 16. Rae1 {[%clk 0:01:38.2]} 16... Bf5 {[%clk
0:01:46]} 17. Nxe4 {[%clk 0:01:33]} 17... Rxe4 {[%clk 0:01:18.5]} 18. Qd2 {[%clk
0:01:27.6]} 18... cxd4 {[%clk 0:01:11.8]} 19. Nxd4 {[%clk 0:01:27.1]} 19... Bh7
{[%clk 0:01:08.9]} 20. Rxe4 {[%clk 0:01:27.2]} 20... Bxe4 {[%clk 0:01:09.4]} 21.
Qf2 {[%clk 0:01:27.5]} 21... Rf8 {[%clk 0:01:07.5]} 22. Nb3 {[%clk 0:01:21.2]}
22... Qe7 {[%clk 0:00:51.9]} 23. Nc5 {[%clk 0:01:17.9]} 23... f5 {[%clk
0:00:49.4]} 24. Qd4 {[%clk 0:01:17.8]} 24... Rb8 {[%clk 0:00:35.1]} 25. b4
{[%clk 0:01:16.1]} 25... a5 {[%clk 0:00:33.8]} 26. a3 {[%clk 0:01:15.9]} 26...
axb4 {[%clk 0:00:34.1]} 27. axb4 {[%clk 0:01:07.8]} 27... Ra8 {[%clk 0:00:31.6]}
28. h3 {[%clk 0:01:07.8]} 28... Ra2 {[%clk 0:00:31.1]} 29. Rf2 {[%clk 0:01:07]}
29... Qa7 {[%clk 0:00:27.5]} 30. Kh2 {[%clk 0:00:59.7]} 30... Rxf2 {[%clk
0:00:20.3]} 31. Qxf2 {[%clk 0:01:01.6]} 31... Qa3 {[%clk 0:00:21.2]} 32. Qd2
{[%clk 0:00:54]} 32... Qa1 {[%clk 0:00:15.4]} 33. Ne6 {[%clk 0:00:52.9]} 33...
Qf1 {[%clk 0:00:14.4]} 34. Nf4 {[%clk 0:00:52.4]} 34... Qc4 {[%clk 0:00:13.2]}
35. Ne2 {[%clk 0:00:47.9]} 35... Kh7 {[%clk 0:00:10.6]} 36. Nd4 {[%clk
0:00:48.5]} 36... c5 {[%clk 0:00:10.5]} 37. bxc5 {[%clk 0:00:47]} 37... Qxc5
{[%clk 0:00:11.4]} 38. Qf2 {[%clk 0:00:46.8]} 38... Qxc3 {[%clk 0:00:10.3]} 39.
Nxf5 {[%clk 0:00:44.6]} 39... Qf6 {[%clk 0:00:06.5]} 40. g4 {[%clk 0:00:42.5]}
40... Bxf5 {[%clk 0:00:05.6]} 41. gxf5 {[%clk 0:00:32.7]} 41... Qd6+ {[%clk
0:00:05.3]} 42. g3 {[%clk 0:00:25.7]} 42... d4 {[%clk 0:00:06]} 43. Kg2 {[%clk
0:00:24.1]} 43... Qd5+ {[%clk 0:00:05.3]} 44. Qf3 {[%clk 0:00:20.9]} 44... Qd6
{[%clk 0:00:03.7]} 45. Qd3 {[%clk 0:00:19.2]} 45... Qd5+ {[%clk 0:00:04.1]} 46.
Kf2 {[%clk 0:00:20.6]} 1-0